bitfinex/quotes_SOLUSD_20250520
["timestamp","ask_amount","ask_price","bid_price","bid_amount"]
[1747753021560,51.17091082,166.11,166.05,3.40892517]
[1747753021767,17.33610096,166.1,166.05,3.40892517]
[1747753022485,21.07291226,166.09,166.05,3.40892517]
[1747753024848,6.02083207,166.09,166.05,22.05857403]
[1747753025778,6.02083207,166.09,166.06,3.40892517]
[1747753026472,15.05124121,166.1,166.06,3.40892517]
[1747753027170,15.05124121,166.1,166.07,3.40892517]
[1747753027475,17.33610096,166.09,166.07,3.40892517]
[1747753028067,32.38734217,166.1,166.07,3.40892517]
[1747753028267,32.38734217,166.1,166.05,18.06]
[1747753029254,38.40781176,166.1,166.05,18.06]
[1747753030343,38.40781176,166.1,166.06,3.40474915]
[1747753031854,38.40781176,166.1,166.04,18.06]
[1747753032875,38.40781176,166.1,166.05,3.40457393]
[1747753034784,38.40781176,166.1,166.04,18.06]
[1747753037283,21.0717108,166.1,166.05,22.05303429]
[1747753037456,21.0717108,166.1,166.05,3.40338543]
[1747753037782,38.40781176,166.1,166.05,3.40338543]
[1747753037962,68.51015974,166.1,166.05,3.40338543]
[1747753038150,17.33610096,166.09,166.05,3.40338543]
[1747753038361,21.07418111,166.08,166.05,3.40338543]
[1747753038554,21.07418111,166.08,166.04,18.06]
[1747753040403,17.33610096,166.06,165.99,8.0109]
[1747753040553,17.33610096,166.03,165.97,233.88071306]
[1747753040881,17.33610096,166.03,165.97,8.62071306]
[1747753040882,17.33610096,165.98,165.97,8.62071306]
[1747753041265,18.06,166.07,165.97,8.62071306]
[1747753041467,17.33610096,166.01,165.97,8.62071306]
[1747753041869,17.33610096,166.0,165.97,8.62071306]
[1747753042876,17.33610096,166.0,165.95,1.5788]
[1747753042877,6.0244593,165.99,165.95,1.5788]
[1747753043086,21.08560756,165.99,165.95,1.5788]
[1747753044666,17.33610096,165.98,165.95,1.5788]
[1747753044872,17.33610096,165.98,165.93,18.06]
[1747753045071,51.20790408,165.99,165.92,19.92]
[1747753045072,17.33610096,165.97,165.92,19.92]
[1747753046182,17.33610096,165.96,165.92,19.92]
[1747753046571,21.09068995,165.95,165.92,19.92]
[1747753046796,21.09068995,165.95,165.89,18.06]
[1747753046797,68.556348,165.95,165.89,18.06]
[1747753047666,68.556348,165.95,165.88,36.70964886]
[1747753048664,21.09068995,165.95,165.88,36.70964886]
[1747753049166,38.42679091,165.95,165.88,36.70964886]
[1747753050771,21.09068995,165.95,165.88,36.70964886]
[1747753051491,68.556348,165.95,165.88,36.70964886]
[1747753051788,68.556348,165.95,165.87,103.1855]
[1747753051789,17.33610096,165.93,165.87,103.1855]
[1747753051995,17.33610096,165.91,165.87,21.5855]
[1747753052178,0.14216157,165.94,165.87,21.5855]
[1747753052179,17.33610096,165.93,165.87,21.5855]
[1747753052382,21.09450337,165.92,165.87,21.5855]
[1747753054015,38.43060433,165.92,165.87,21.5855]
[1747753055699,21.09450337,165.92,165.87,21.5855]
[1747753057086,68.56560915,165.92,165.87,21.5855]
[1747753057284,17.33610096,165.88,165.83,19.5625]
[1747753058212,17.33610096,165.89,165.83,19.5625]
[1747753058425,21.09959006,165.88,165.83,19.5625]
[1747753059171,21.09959006,165.88,165.83,1.5025]
[1747753059382,38.43569102,165.88,165.83,1.5025]
[1747753059881,51.24186158,165.88,165.83,1.5025]
[1747753060078,17.33610096,165.85,165.8,18.64964886]
[1747753060285,17.33610096,165.85,165.79,1.6412]
[1747753060501,38.44332565,165.82,165.77,6.2964]
[1747753060823,38.44332565,165.82,165.77,18.64964886]
[1747753061010,17.33610096,165.81,165.76,19.94]
[1747753061599,17.33610096,165.8,165.75,1.6412]
[1747753061819,17.33610096,165.79,165.75,1.6412]
[1747753062120,17.33610096,165.78,165.71,19.6507]
[1747753062401,17.33610096,165.77,165.72,18.64964886]
[1747753062623,17.33610096,165.77,165.71,1.5707]
[1747753062624,21.11486486,165.76,165.71,1.5707]
[1747753063077,38.45096582,165.76,165.71,1.5707]
[1747753063493,17.33610096,165.75,165.71,1.5707]
[1747753063695,17.33610096,165.75,165.7,19.94]
[1747753064017,17.33610096,165.72,165.66,1.5586]
[1747753064342,17.33610096,165.71,165.66,1.5586]
[1747753064515,21.12251055,165.7,165.66,1.5586]
[1747753064720,6.03500301,165.7,165.67,18.64964886]
[1747753066505,15.08539767,165.73,165.67,18.64964886]
[1747753066896,6.03354651,165.74,165.67,18.64964886]
[1747753067288,6.03354651,165.74,165.67,23.47840649]
[1747753067991,6.03354651,165.74,165.67,24.08172291]
[1747753068914,21.11388755,165.77,165.67,19.25296528]
[1747753069405,21.11388755,165.77,165.67,18.64964886]
[1747753069588,38.44998851,165.77,165.67,18.64964886]
[1747753070390,17.33610096,165.75,165.67,18.64964886]
[1747753070601,17.33610096,165.74,165.67,18.64964886]
[1747753071099,21.11868701,165.73,165.67,18.64964886]
[1747753072884,6.03391057,165.73,165.67,18.64964886]
[1747753073104,6.0331825,165.75,165.67,36.72964886]
[1747753073300,21.11613875,165.75,165.67,36.72964886]
[1747753074280,38.45223971,165.75,165.67,36.72964886]
[1747753074806,21.11613875,165.75,165.67,36.72964886]
[1747753076204,38.45223971,165.75,165.67,36.72964886]
[1747753076506,38.45223971,165.75,165.67,18.64964886]
[1747753076507,17.33610096,165.74,165.67,18.64964886]
[1747753077196,21.11868701,165.73,165.67,18.64964886]
[1747753078010,17.33610096,165.72,165.67,18.64964886]
[1747753078219,21.11868701,165.73,165.67,18.64964886]
[1747753078512,68.62434085,165.73,165.67,18.64964886]
[1747753079595,21.11868701,165.73,165.67,18.64964886]
[1747753079919,68.62434085,165.73,165.67,18.64964886]
[1747753080113,17.33610096,165.72,165.66,21.4786]
[1747753080446,17.33610096,165.71,165.66,21.4786]
[1747753080616,21.11868701,165.73,165.67,18.64964886]
[1747753081618,15.08477644,165.73,165.67,18.64964886]
[1747753083407,30.16591251,165.75,165.67,18.64964886]
[1747753084114,21.11486486,165.76,165.67,18.64964886]
[1747753084345,21.11486486,165.76,165.67,19.25301066]
[1747753085748,15.08204633,165.76,165.67,24.0818608]
[1747753086231,15.08204633,165.76,165.67,19.25301066]
[1747753086830,15.08204633,165.76,165.68,18.64964886]
[1747753087730,68.61505848,165.76,165.69,18.64964886]
[1747753087913,51.27895752,165.76,165.69,18.64964886]
[1747753088118,17.33610096,165.75,165.69,18.64964886]
[1747753088615,17.33610096,165.74,165.68,19.92]
[1747753089736,21.11868701,165.73,165.68,19.92]
[1747753091112,15.08477644,165.73,165.68,19.92]
[1747753095470,36.2012791,165.74,165.69,18.79181043]
[1747753095471,6.03354651,165.74,165.69,18.79181043]
[1747753096828,21.1174128,165.74,165.69,18.64964886]
[1747753097438,15.08386629,165.74,165.71,18.64964886]
[1747753098938,15.08386629,165.74,165.71,18.04198296]
[1747753099347,15.08386629,165.74,165.7,18.1]
[1747753100119,32.41996725,165.74,165.7,18.1]
[1747753100732,15.08386629,165.74,165.7,18.1]
[1747753101619,21.1174128,165.74,165.7,18.1]
[1747753102348,68.62124635,165.74,165.68,38.02]
[1747753102521,68.62124635,165.74,165.68,19.92]
[1747753103241,17.33610096,165.73,165.68,19.92]
[1747753103819,21.11996138,165.72,165.68,19.92]
[1747753105944,21.11996138,165.72,165.69,3.4249126]
[1747753105945,15.0856867,165.72,165.69,3.4249126]
[1747753106349,15.0856867,165.72,165.69,22.07456146]
[1747753107339,15.0856867,165.72,165.7,3.4249126]
[1747753109758,6.03354651,165.74,165.71,36.74964886]
[1747753110359,15.08188808,165.77,165.71,36.74964886]
[1747753110653,6.03209072,165.78,165.74,0.14216157]
[1747753110845,6.03209072,165.78,165.76,18.64964886]
[1747753111031,6.03209072,165.78,165.77,18.1]
[1747753113031,21.10922184,165.81,165.77,18.1]
[1747753113858,15.07822251,165.81,165.77,18.1]
[1747753114260,32.41432347,165.81,165.77,18.1]
[1747753114765,17.33610096,165.8,165.75,19.9]
[1747753115069,32.41432347,165.81,165.75,19.9]
[1747753116472,68.60031948,165.81,165.75,19.9]
[1747753118771,17.33610096,165.79,165.75,19.9]
[1747753118966,17.33610096,165.76,165.69,101.5]
[1747753119169,17.33610096,165.75,165.7,18.64964886]
[1747753119548,68.62124635,165.74,165.69,19.9]
[1747753119986,17.33610096,165.73,165.69,19.9]
[1747753121784,68.62743574,165.72,165.67,20.16984886]
[1747753121985,68.62743574,165.72,165.64,6.5247]
[1747753121986,17.33610096,165.68,165.64,36.72964886]
[1747753122177,17.33610096,165.69,165.64,18.64964886]
[1747753122894,17.33610096,165.69,165.65,3.42167502]
[1747753123185,51.29133478,165.72,165.65,3.42167502]
[1747753123490,17.33610096,165.71,165.65,3.42167502]
[1747753123675,68.62743574,165.72,165.66,18.64964886]
[1747753123987,45.2570601,165.72,165.64,18.64964886]
[1747753124181,62.59316106,165.72,165.64,18.64964886]
[1747753126088,68.62743574,165.72,165.64,18.64964886]
[1747753126767,68.62743574,165.72,165.66,18.64964886]
[1747753127784,68.62743574,165.72,165.64,18.64964886]
[1747753129285,17.33610096,165.69,165.64,36.74964886]
[1747753129609,17.33610096,165.69,165.63,18.1]
[1747753130274,81.46270818,165.72,165.63,18.1]
[1747753130483,17.33610096,165.7,165.63,18.1]
[1747753130676,21.12378538,165.69,165.63,18.64964886]
[1747753131086,51.30062164,165.69,165.63,18.64964886]
[1747753131274,68.6367226,165.69,165.63,18.64964886]
[1747753131480,68.6367226,165.69,165.64,3.41823796]
[1747753132886,51.30062164,165.69,165.63,18.64964886]
[1747753133090,21.12378538,165.69,165.63,18.64964886]
[1747753134998,15.08841813,165.69,165.63,18.64964886]
[1747753142393,15.08841813,165.69,165.64,3.41577836]
[1747753143611,15.08841813,165.69,165.64,85.01577836]
[1747753143902,15.08841813,165.69,165.65,18.64964886]
[1747753144408,15.08841813,165.69,165.64,81.6]
[1747753144909,32.42451909,165.69,165.64,81.6]
[1747753145306,68.6367226,165.69,165.64,81.6]
[1747753145702,17.33610096,165.68,165.62,1.6085]
[1747753145900,17.33610096,165.67,165.62,1.6085]
[1747753146213,81.4774579,165.69,165.62,1.6085]
[1747753146383,17.33610096,165.68,165.62,1.6085]
[1747753147319,17.33610096,165.66,165.6,100.24964886]
[1747753147607,17.33610096,165.65,165.6,118.34964886]
[1747753147812,17.33610096,165.66,165.6,118.34964886]
[1747753148414,17.33610096,165.66,165.6,100.24964886]
[1747753149501,21.1288862,165.65,165.6,18.64964886]
[1747753150014,21.1288862,165.65,165.6,36.74964886]
[1747753150510,21.1288862,165.65,165.6,18.1]
[1747753150692,21.1288862,165.65,165.61,18.64964886]
[1747753152020,30.18047926,165.67,165.61,18.64964886]
[1747753154209,51.30681474,165.67,165.61,18.64964886]
[1747753154910,17.33610096,165.66,165.59,18.64964886]
[1747753155113,17.33610096,165.66,165.61,18.1]
[1747753155505,68.6429157,165.67,165.61,18.1]
[1747753155800,21.12633548,165.67,165.61,18.1]
[1747753156508,15.09023963,165.67,165.61,18.1]
[1747753158816,15.09023963,165.67,165.63,18.64964886]
[1747753160131,15.09023963,165.67,165.61,18.1]
[1747753160529,32.56765403,165.67,165.61,18.1]
[1747753161098,17.4774144,165.66,165.6,18.64964886]
[1747753161327,17.4774144,165.66,165.6,36.74964886]
[1747753161503,15.09023963,165.67,165.6,36.74964886]
[1747753161706,32.56765403,165.67,165.6,36.74964886]
[1747753162219,15.09023963,165.67,165.6,36.74964886]
[1747753162611,38.60374988,165.67,165.6,36.74964886]
[1747753163125,68.78422914,165.67,165.6,36.74964886]
[1747753164440,51.30681474,165.67,165.6,36.74964886]
[1747753164741,45.27071889,165.67,165.6,36.74964886]
[1747753164936,45.27071889,165.67,165.6,18.64964886]
[1747753165141,45.27071889,165.67,165.61,18.1]
[1747753165518,45.27071889,165.67,165.61,21.52685655]
[1747753165734,51.30681474,165.67,165.61,21.52685655]
[1747753166706,51.30681474,165.67,165.62,3.42685655]
[1747753166910,30.18047926,165.67,165.62,3.42685655]
[1747753169246,51.30681474,165.67,165.62,3.42685655]
[1747753178075,45.27071889,165.67,165.62,3.42685655]
[1747753178247,15.09023963,165.67,165.62,3.42685655]
[1747753179454,51.30062164,165.69,165.62,3.42685655]
[1747753180563,68.77803604,165.69,165.62,3.42685655]
[1747753183875,17.4774144,165.67,165.62,3.42685655]
[1747753184055,17.4774144,165.66,165.62,3.42685655]
[1747753184435,17.4774144,165.66,165.61,3.42685655]
[1747753184665,17.4774144,165.63,165.61,3.42685655]
[1747753185170,23.51533252,165.62,165.61,3.42685655]
[1747753185843,68.79971845,165.62,165.56,19.86]
[1747753186040,17.4774144,165.6,165.56,19.86]
[1747753186345,17.4774144,165.6,165.54,19.6184]
[1747753186863,17.4774144,165.6,165.54,1.5184]
[1747753187060,17.4774144,165.6,165.55,3.42305851]
[1747753187365,38.61395645,165.59,165.55,3.42305851]
[1747753187561,21.13654205,165.59,165.55,3.42305851]
[1747753187760,38.61395645,165.59,165.55,3.42305851]
[1747753188358,38.61395645,165.59,165.54,1.5184]
[1747753189767,68.80901653,165.59,165.54,1.5184]
[1747753189954,17.4774144,165.58,165.52,24.1311]
[1747753190159,17.4774144,165.58,165.52,6.0311]
[1747753190747,17.4774144,165.57,165.51,56.60964886]
[1747753191354,17.4774144,165.56,165.52,3.41934923]
[1747753191559,17.4774144,165.57,165.52,3.41934923]
[1747753191760,21.14037206,165.56,165.52,3.41934923]
[1747753192380,21.14037206,165.56,165.51,19.86]
[1747753195050,38.61778646,165.56,165.51,19.86]
[1747753195358,38.61778646,165.56,165.5,1.5682]
[1747753195660,17.4774144,165.56,165.5,1.5682]
[1747753196059,17.4774144,165.57,165.5,1.5682]
[1747753196477,51.33160213,165.59,165.5,1.5682]
[1747753196779,17.4774144,165.57,165.5,1.5682]
[1747753198092,15.10026576,165.56,165.51,18.64964886]
[1747753200197,21.14037206,165.56,165.51,18.64964886]
[1747753200412,21.14037206,165.56,165.5,1.5682]
[1747753200578,17.4774144,165.54,165.48,18.64964886]
[1747753200775,68.81831798,165.56,165.48,18.64964886]
[1747753200975,21.14037206,165.56,165.48,18.64964886]
[1747753201874,21.14037206,165.56,165.5,18.64964886]
[1747753202272,21.13725887,165.59,165.5,18.64964886]
[1747753202687,17.4774144,165.58,165.5,18.64964886]
[1747753203074,68.80973335,165.59,165.5,18.64964886]
[1747753203281,17.4774144,165.58,165.5,18.64964886]
[1747753203613,17.4774144,165.55,165.49,25.7561]
[1747753203895,17.4774144,165.55,165.49,7.6561]
[1747753204095,17.4774144,165.56,165.49,7.6561]
[1747753204290,21.14164904,165.55,165.49,7.6561]
[1747753204470,21.14164904,165.55,165.49,1.6128]
[1747753204471,17.4774144,165.54,165.49,1.6128]
[1747753204871,68.82141922,165.55,165.49,1.6128]
[1747753205284,17.4774144,165.54,165.48,19.84]
[1747753205626,17.4774144,165.53,165.46,36.74964886]
[1747753205909,17.4774144,165.53,165.46,18.64964886]
[1747753206073,17.4774144,165.52,165.46,18.64964886]
[1747753206272,21.1467585,165.51,165.46,18.64964886]
[1747753206703,51.3564135,165.51,165.45,7.6185]
[1747753206877,68.8338279,165.51,165.45,7.6185]
[1747753207198,17.4774144,165.5,165.45,1.5326]
[1747753207599,17.4774144,165.49,165.43,19.84]
[1747753208594,21.1505922,165.48,165.43,19.84]
[1747753208793,21.1505922,165.48,165.42,18.64964886]
[1747753209188,38.6280066,165.48,165.42,18.64964886]
[1747753209987,21.1505922,165.48,165.42,18.64964886]
[1747753210190,6.04302634,165.48,165.42,29.62743934]
[1747753210602,15.10563267,165.51,165.42,29.62743934]
[1747753210804,6.04156597,165.52,165.43,0.14216157]
[1747753211001,6.04156597,165.52,165.45,0.14216157]
[1747753211203,6.04156597,165.52,165.47,18.64964886]
[1747753211380,6.04156597,165.52,165.46,37.98]
[1747753211703,6.04156597,165.52,165.47,18.64964886]
[1747753211908,21.14353206,165.54,165.47,18.64964886]
[1747753213001,21.14353206,165.54,165.49,18.64964886]
[1747753213994,51.33160213,165.59,165.49,18.64964886]
[1747753214516,17.4774144,165.56,165.49,18.64964886]
[1747753214718,17.4774144,165.57,165.49,18.64964886]
[1747753214920,17.4774144,165.58,165.49,18.64964886]
[1747753215415,17.4774144,165.56,165.49,18.64964886]
[1747753215800,17.4774144,165.53,165.48,1.6366]
[1747753216110,21.1454809,165.52,165.48,1.6366]
[1747753216623,38.6228953,165.52,165.48,1.6366]
[1747753217408,68.83072516,165.52,165.45,18.64964886]
[1747753217601,68.83072516,165.52,165.45,36.76964886]
[1747753217913,68.83072516,165.52,165.45,56.62964886]
[1747753218121,30.20782986,165.52,165.45,56.62964886]
[1747753218295,47.68524426,165.52,165.45,18.64964886]
[1747753218496,47.68524426,165.52,165.45,56.62964886]
[1747753220106,30.20782986,165.52,165.45,38.50964886]
[1747753220308,30.20782986,165.52,165.46,18.12]
[1747753220503,47.68165257,165.54,165.46,18.12]
[1747753220818,47.68165257,165.54,165.46,29.48204502]
[1747753221413,30.20423817,165.54,165.47,18.64964886]
[1747753222220,21.14164904,165.55,165.47,18.64964886]
[1747753222428,21.14164904,165.55,165.49,18.64964886]
[1747753222807,21.14164904,165.55,165.5,6.4389]
[1747753223141,17.4774144,165.53,165.48,1.5164]
[1747753223512,99.023775,165.55,165.49,18.64964886]
[1747753223817,17.4774144,165.54,165.49,18.64964886]
[1747753224219,68.8338279,165.51,165.46,29.48204502]
[1747753224403,68.8338279,165.51,165.46,11.36204502]
[1747753226023,51.3564135,165.51,165.47,18.64964886]
[1747753226326,30.209655,165.51,165.47,18.64964886]
[1747753228313,68.8338279,165.51,165.47,18.64964886]
[1747753229230,51.3564135,165.51,165.47,18.64964886]
[1747753230606,51.3564135,165.51,165.46,11.36204502]
[1747753230922,68.8338279,165.51,165.46,11.36204502]
[1747753233325,68.8338279,165.51,165.46,18.64964886]
[1747753233499,51.34400482,165.55,165.46,18.64964886]
[1747753234206,68.82141922,165.55,165.46,18.64964886]
[1747753235133,68.82141922,165.55,165.48,18.64964886]
[1747753235434,17.4774144,165.54,165.48,18.64964886]
[1747753235618,21.14420346,165.53,165.48,18.64964886]
[1747753236321,21.14420346,165.53,165.46,18.64964886]
[1747753236518,68.82762281,165.53,165.44,18.64964886]
[1747753236835,68.82762281,165.53,165.46,36.76964886]
[1747753237130,51.35020841,165.53,165.46,36.76964886]
[1747753239226,51.35020841,165.53,165.48,18.64964886]
[1747753239934,47.68341935,165.53,165.48,18.64964886]
[1747753240132,47.68341935,165.53,165.46,36.76964886]
[1747753241042,30.20600495,165.53,165.46,36.76964886]
[1747753241213,47.68341935,165.53,165.46,36.76964886]
[1747753241712,30.20600495,165.53,165.47,18.64964886]
[1747753242224,30.20600495,165.53,165.48,3.42451589]
[1747753242622,30.20235578,165.55,165.48,3.42451589]
[1747753242815,30.20235578,165.55,165.5,18.64964886]
[1747753243620,21.14037206,165.56,165.52,18.64964886]
[1747753243807,17.4774144,165.54,165.51,3.42451589]
[1747753244013,23.51898037,165.52,165.51,3.42451589]
[1747753244634,38.6228953,165.52,165.47,3.42451589]
[1747753244832,17.4774144,165.51,165.47,3.42451589]
[1747753245030,21.1454809,165.52,165.47,3.42451589]
[1747753245332,68.83072516,165.52,165.47,3.42451589]
[1747753246647,30.20782986,165.52,165.47,3.42451589]
[1747753246830,47.68524426,165.52,165.47,3.42451589]
[1747753247641,21.14803625,165.5,165.47,3.42451589]
[1747753248042,21.14803625,165.5,165.46,18.64964886]
[1747753249120,15.10344785,165.53,165.47,21.3437]
[1747753249313,30.18642004,165.64,165.49,0.14216157]
[1747753249518,15.10100213,165.56,165.51,18.64964886]
[1747753249813,51.31658183,165.64,165.54,18.64964886]
[1747753250018,51.31658183,165.64,165.56,18.64964886]
[1747753250331,68.79399623,165.64,165.56,36.76964886]
[1747753251453,17.4774144,165.61,165.56,36.76964886]
[1747753251632,21.13526569,165.6,165.56,36.76964886]
[1747753253248,21.13526569,165.6,165.57,18.64964886]
[1747753254547,15.09661835,165.6,165.57,18.64964886]
[1747753255228,15.09661835,165.6,165.56,36.76964886]
[1747753255423,6.03791812,165.62,165.57,18.64964886]
[1747753256347,21.13271343,165.62,165.57,18.64964886]
[1747753256552,30.18642004,165.64,165.57,18.64964886]
[1747753257053,21.1288862,165.65,165.57,18.64964886]
[1747753257439,17.4774144,165.64,165.56,36.76964886]
[1747753257743,17.4774144,165.63,165.57,18.64964886]
[1747753257929,17.4774144,165.62,165.57,18.64964886]
[1747753258134,17.4774144,165.63,165.57,18.64964886]
[1747753258336,17.4774144,165.62,165.57,18.64964886]
[1747753258537,21.13398949,165.61,165.57,18.64964886]
[1747753259954,21.13398949,165.61,165.57,18.79181043]
[1747753260527,81.4971325,165.65,165.57,18.79181043]
[1747753261455,51.31300935,165.65,165.57,18.79181043]
[1747753261645,51.31300935,165.65,165.59,18.64964886]
[1747753262657,27.97246146,165.64,165.59,18.64964886]
[1747753262955,27.97246146,165.63,165.59,18.64964886]
[1747753263833,27.97246146,165.62,165.57,19.82]
[1747753264136,45.27618472,165.65,165.57,19.82]
[1747753264434,17.90540587,165.8,165.75,18.79181043]
[1747753264632,17.90540587,165.8,165.76,38.06216157]
[1747753264955,17.90540587,165.8,165.77,18.64964886]
[1747753265265,23.93697413,165.8,165.77,18.64964886]
[1747753265434,17.90540587,165.8,165.77,18.64964886]
[1747753266355,9.34843293,165.8,165.78,18.64964886]
[1747753266558,15.37999768,165.8,165.78,18.64964886]
[1747753266770,15.37999768,165.8,165.76,19.82]
[1747753267248,9.34843293,165.8,165.77,18.64964886]
[1747753267448,15.3798217,165.8,165.77,18.64964886]
[1747753267632,15.3798217,165.8,165.76,19.82]
[1747753268348,30.45822942,165.8,165.76,19.82]
[1747753268553,15.07840772,165.8,165.76,19.82]
[1747753269361,6.03099933,165.81,165.77,18.64964886]
[1747753270666,21.10086211,165.87,165.77,18.64964886]
[1747753270850,27.97246146,165.85,165.77,18.64964886]
[1747753271255,27.97246146,165.86,165.77,18.64964886]
[1747753271464,51.24495085,165.87,165.77,18.64964886]
[1747753272854,45.21613311,165.87,165.77,18.64964886]
[1747753274052,27.97246146,165.83,165.76,19.82]
[1747753274267,27.97246146,165.81,165.76,19.82]
[1747753274943,21.1097708,165.8,165.76,19.82]
[1747753276073,15.07840772,165.8,165.76,19.82]
[1747753280552,15.07840772,165.8,165.74,38.26534886]
[1747753280553,43.05086918,165.8,165.74,1.5157]
[1747753280756,43.05086918,165.8,165.71,18.64964886]
[1747753280973,42.55086918,165.8,165.71,18.64964886]
[1747753281277,27.97246146,165.79,165.71,18.64964886]
[1747753281773,51.27277113,165.78,165.71,18.64964886]
[1747753283256,79.24523259,165.78,165.71,18.64964886]
[1747753284079,51.27277113,165.78,165.71,18.64964886]
[1747753284973,21.11231752,165.78,165.71,18.64964886]
[1747753285749,51.26349435,165.81,165.71,18.64964886]
[1747753287452,79.23595581,165.81,165.71,100.24964886]
[1747753288480,27.97246146,165.8,165.71,100.24964886]
[1747753289582,109.39095249,165.81,165.71,100.24964886]
[1747753291084,27.97246146,165.8,165.71,100.24964886]
[1747753291882,27.97246146,165.79,165.71,118.32964886]
[1747753292203,27.97246146,165.76,165.71,81.6]
[1747753292372,27.97246146,165.76,165.69,40.1838]
[1747753293187,27.97246146,165.76,165.69,22.1038]
[1747753293767,28.11462303,165.77,165.69,22.1038]
[1747753294467,79.25141898,165.76,165.69,1.6038]
[1747753295994,27.97246146,165.75,165.67,18.64964886]
[1747753296173,27.97246146,165.74,165.67,18.64964886]
[1747753296678,27.97246146,165.75,165.66,44.7229]
[1747753296878,81.44305018,165.76,165.67,18.64964886]
[1747753297479,27.97246146,165.75,165.67,18.64964886]
[1747753298208,27.97246146,165.74,165.67,18.64964886]
[1747753298572,27.97246146,165.75,165.67,18.64964886]
[1747753298886,51.28514539,165.74,165.67,18.64964886]
[1747753300273,51.28514539,165.74,165.66,44.7229]
[1747753300480,51.28514539,165.74,165.66,26.6429]
[1747753301580,79.25760685,165.74,165.66,26.6429]
[1747753302003,51.28514539,165.74,165.66,26.6429]
[1747753302971,79.25760685,165.74,165.66,26.6429]
[1747753303692,27.97246146,165.73,165.66,20.52]
[1747753304596,27.97246146,165.72,165.66,20.52]
[1747753304781,27.97246146,165.71,165.66,20.52]
[1747753304981,27.97246146,165.68,165.61,1.5817]
[1747753305281,27.97246146,165.65,165.58,6.3073]
[1747753305585,27.97246146,165.63,165.57,1.5817]
[1747753306302,27.97246146,165.61,165.57,1.5817]
[1747753306594,27.97246146,165.63,165.57,1.5817]
[1747753306984,21.13271343,165.62,165.57,1.5817]
[1747753307569,21.13271343,165.62,165.56,18.64964886]
[1747753307773,27.97246146,165.61,165.55,18.64964886]
[1747753308395,51.32230405,165.62,165.55,18.64964886]
[1747753308703,27.97246146,165.61,165.55,18.64964886]
[1747753309200,21.13526569,165.6,165.55,18.64964886]
[1747753311898,15.09661835,165.6,165.54,18.1]
[1747753314001,21.13526569,165.6,165.54,18.1]
[1747753315410,27.97246146,165.59,165.54,18.64964886]
[1747753315618,51.3285024,165.6,165.54,18.64964886]
[1747753316588,21.13526569,165.6,165.54,18.64964886]
[1747753316901,6.03864734,165.6,165.56,0.14216157]
[1747753317086,6.03791812,165.62,165.56,0.14216157]
[1747753317604,6.03791812,165.62,165.57,18.64964886]
[1747753318804,15.09189505,165.66,165.57,18.64964886]
[1747753320305,27.97246146,165.64,165.56,18.64964886]
[1747753320605,27.97246146,165.63,165.56,36.74964886]
[1747753320795,15.09189505,165.66,165.56,36.74964886]
[1747753321011,43.06435651,165.66,165.56,36.74964886]
[1747753321207,15.09189505,165.66,165.57,0.14216157]
[1747753321393,15.09189505,165.66,165.57,0.74590637]
[1747753322510,58.14747654,165.7,165.57,5.57754073]
[1747753322683,30.17501508,165.7,165.57,5.57754073]
[1747753322884,30.17501508,165.7,165.59,18.79181043]
[1747753323086,30.17501508,165.7,165.61,18.79181043]
[1747753325806,21.11996138,165.72,165.61,24.22595844]
[1747753326111,21.11996138,165.72,165.65,18.64964886]
[1747753326296,21.11996138,165.72,165.67,18.64964886]
[1747753326702,15.0856867,165.72,165.67,18.64964886]
[1747753327718,6.03354651,165.74,165.69,18.64964886]
[1747753328686,21.1174128,165.74,165.69,18.64964886]
[1747753328903,21.1174128,165.74,165.68,24.73128776]
[1747753329107,49.08987426,165.74,165.68,24.73128776]
[1747753329414,27.97246146,165.73,165.68,20.24]
[1747753329708,49.08987426,165.74,165.68,20.24]
[1747753329892,79.25760685,165.74,165.68,20.24]
[1747753330314,27.97246146,165.73,165.68,20.24]
[1747753330805,21.11996138,165.72,165.68,20.24]
[1747753332623,6.03427468,165.72,165.69,18.64964886]
[1747753332794,36.19254433,165.78,165.69,18.64964886]
[1747753332993,51.27277113,165.78,165.69,18.64964886]
[1747753334223,21.11231752,165.78,165.73,18.64964886]
[1747753334591,6.03209072,165.78,165.75,18.64964886]
[1747753334793,64.14973006,165.85,165.75,18.64964886]
[1747753334989,27.97246146,165.84,165.75,18.64964886]
[1747753335200,27.97246146,165.8,165.72,26.8795]
[1747753335421,27.97246146,165.8,165.73,18.64964886]
[1747753335613,27.97246146,165.81,165.73,18.64964886]
[1747753335914,27.97246146,165.83,165.73,18.64964886]
[1747753336709,27.97246146,165.82,165.73,18.64964886]
[1747753336921,27.97246146,165.8,165.73,18.64964886]
[1747753337098,27.97246146,165.78,165.72,20.24]
[1747753337536,27.97246146,165.79,165.72,20.24]